fUSD/lending_fUSD_20251123
["ID","MTS","AMOUNT","RATE_DAILY","PERIOD"]
[394772749,1763933459367,-250.0,0.00040998,30]
[394772750,1763933459376,-500.0,0.00040998,30]
[394772751,1763933459386,-250.0,0.00040998,30]
[394772752,1763933459395,-500.0,0.00040998,30]
[394772753,1763933459405,-500.0,0.00040998,30]
[394772754,1763933459415,-1500.0,0.00040998,30]
[394772755,1763933459425,-250.0,0.00040998,30]
[394772756,1763933459435,-500.0,0.00040998,30]
[394772757,1763933459445,-250.0,0.00040998,30]
[394772758,1763933459455,-500.0,0.00040998,30]
[394772759,1763933459464,-1500.0,0.00040998,30]
[394772760,1763933459474,-500.0,0.00040998,30]
[394772761,1763933459484,-250.0,0.00040998,30]
[394772762,1763933459494,-500.0,0.00040998,30]
[394772763,1763933459503,-250.0,0.00040998,30]
[394772764,1763933459514,-151.0,0.00040998,30]
[394772765,1763933459524,-1187.76999995,0.00040998,30]
[394772766,1763933459534,-500.0,0.00040998,30]
[394772767,1763933459544,-500.0,0.00040998,30]
[394772768,1763933459553,-250.0,0.00040998,30]
[394772769,1763933459564,-500.0,0.00040998,30]
[394772770,1763933459573,-276.4808023,0.00040998,30]
[394772771,1763933459583,-151.0,0.00040998,30]
[394772772,1763933459594,-500.0,0.00040998,30]
[394772773,1763933459604,-5000.0,0.00040998,30]
[394772774,1763933459614,-250.0,0.00040998,30]
[394772775,1763933459624,-500.0,0.00040998,30]
[394772776,1763933459635,-250.0,0.00040998,30]
[394772777,1763933459645,-500.0,0.00040998,30]
[394772778,1763933459655,-157.8410325,0.00040998,30]
[394772779,1763933459665,-414.0,0.00040998,30]
[394772780,1763933459675,-5000.0,0.00040998,30]
[394772781,1763933459684,-500.0,0.00040998,30]
[394772782,1763933459694,-250.0,0.00040998,30]
[394772783,1763933459704,-500.0,0.00040998,30]
[394772784,1763933459714,-500.0,0.00040998,30]
[394772785,1763933459724,-250.0,0.00040998,30]
[394772786,1763933459734,-429.318,0.00040998,30]
[394772787,1763933459744,-5000.0,0.00040998,30]
[394772788,1763933459753,-500.0,0.00040998,30]
[394772789,1763933459764,-250.0,0.00040998,30]
[394772790,1763933459777,-500.0,0.00040998,30]
[394772791,1763933459787,-267.9696451,0.00040998,30]
[394772792,1763933459797,-500.0,0.00040998,30]
[394772793,1763933459807,-445.202766,0.00040998,30]
[394772794,1763933459818,-500.0,0.00040998,30]
[394772795,1763933459828,-500.0,0.00040998,30]
[394772796,1763933459839,-500.0,0.00040998,30]
[394772797,1763933459848,-355.93122054,0.00040998,30]
[394772798,1763933459859,-461.67526834,0.00040998,30]
[394772799,1763933459870,-500.0,0.00040998,30]
[394772800,1763933459881,-478.75725327,0.00040998,30]
[394772801,1763933459891,-500.0,0.00040998,30]
[394772802,1763933459903,-500.0,0.00040998,30]
[394772803,1763933459912,-250.0,0.00040998,30]
[394772804,1763933459922,-496.47127164,0.00040998,30]
[394772805,1763933459932,-500.0,0.00040998,30]
[394772806,1763933459942,-518.5,0.00040998,30]
[394772807,1763933459954,-250.0,0.00040998,30]
[394772808,1763933459964,-514.84070869,0.00040998,30]
[394772809,1763933459974,-500.0,0.00040998,30]
[394772810,1763933459984,-220.0,0.00040998,30]
[394772811,1763933459993,-620.0,0.00040998,30]
[394772812,1763933460003,-537.6845,0.00040998,30]
[394772813,1763933460015,-250.0,0.00040998,30]
[394772814,1763933460025,-517.78825988,0.00040998,30]
[394772815,1763933460035,-500.0,0.00040998,30]
[394772816,1763933460045,-220.0,0.00040998,30]
[394772817,1763933460055,-557.5788265,0.00040998,30]
[394772818,1763933460065,-500.0,0.00040998,30]
[394772819,1763933460075,-250.0,0.00040998,30]
[394772820,1763933460086,-500.0,0.00040998,30]
[394772821,1763933460096,-370.98335745,0.00040998,30]
[394772822,1763933460105,-578.20924308,0.00040998,30]
[394772823,1763933460115,-500.0,0.00040998,30]
[394772824,1763933460125,-250.0,0.00040998,30]
[394772825,1763933460135,-500.0,0.00040998,30]
[394772826,1763933460146,-500.0,0.00040998,30]
[394772827,1763933460155,-250.0,0.00040998,30]
[394772828,1763933460169,-500.0,0.00040998,30]
[394772829,1763933460180,-500.0,0.00040998,30]
[394772830,1763933460190,-250.0,0.00040998,30]
[394772831,1763933460199,-500.0,0.00040998,30]
[394772832,1763933460210,-250.0,0.00040998,30]
[394772833,1763933460219,-500.0,0.00040998,30]
[394772834,1763933460230,-250.0,0.00040998,30]
[394772835,1763933460239,-500.0,0.00040998,30]
[394772836,1763933460249,-250.0,0.00040998,30]
[394772837,1763933460260,-500.0,0.00040998,30]
[394772838,1763933460271,-500.0,0.00040998,30]
[394772839,1763933460281,-300.0,0.00040998,30]
[394772840,1763933460291,-250.0,0.00040998,30]
[394772841,1763933460302,-500.0,0.00040998,30]
[394772842,1763933460312,-386.49513644,0.00040998,30]
[394772843,1763933460322,-250.0,0.00040998,30]
[394772844,1763933460332,-500.0,0.00040998,30]
[394772845,1763933460342,-333.54777997,0.00040998,30]
[394772846,1763933460352,-500.0,0.00040998,30]
[394772847,1763933460362,-500.0,0.00040998,30]
[394772848,1763933460372,-500.0,0.00040998,30]
[394772849,1763933460382,-500.0,0.00040998,30]
[394772850,1763933460392,-500.0,0.00040998,30]
[394772851,1763933460402,-500.0,0.00040998,30]
[394772852,1763933460413,-500.0,0.00040998,30]
[394772853,1763933460424,-500.0,0.00040998,30]
[394772854,1763933460435,-500.0,0.00040998,30]
[394772855,1763933460445,-500.0,0.00040998,30]
[394772856,1763933460456,-500.0,0.00040998,30]
[394772857,1763933460468,-500.0,0.00040998,30]
[394772858,1763933460478,-277.35679052,0.00040998,30]
[394772859,1763933460488,-500.0,0.00040998,30]
[394772860,1763933460498,-500.0,0.00040998,30]
[394772861,1763933460507,-500.0,0.00040998,30]
[394772862,1763933460517,-500.0,0.00040998,30]
[394772863,1763933460527,-500.0,0.00040998,30]
[394772864,1763933460542,-500.0,0.00040998,30]
[394772865,1763933460552,-524.03564673,0.00040998,30]
[394772866,1763933460562,-500.0,0.00040998,30]
[394772867,1763933460575,-1000.0,0.00040998,3]
[394772868,1763933460585,-1000.0,0.00040998,3]
[394772869,1763933460595,-1000.0,0.00040998,3]
[394772870,1763933460604,-151.0,0.00040998,120]
[394772871,1763933460615,-165.687197,0.00040998,120]
[394772872,1763933460624,-151.0,0.00040998,120]
[394772873,1763933460634,-151.0,0.00040998,120]
[394772874,1763933460645,-255.917737,0.00040998,120]
[394772875,1763933460655,-151.0,0.00040998,120]
[394772876,1763933460665,-576.5799816,0.00040999,2]
[394772877,1763933460675,-300.240513,0.00040999,103]
[394772878,1763933460685,-300.0,0.00040999,10]
[394772879,1763933460697,-666.0,0.00040999,30]
[394772880,1763933460708,-500.0,0.00040999,2]
[394772881,1763933460718,-500.0,0.00040999,2]
[394772882,1763933460728,-500.0,0.00040999,2]
[394772883,1763933460738,-500.0,0.00040999,2]
[394772884,1763933460747,-500.0,0.00040999,2]
[394772885,1763933460757,-500.0,0.00040999,2]
[394772886,1763933460767,-1151.52178,0.00040999,7]
[394772887,1763933460777,-1000.0,0.00040999,2]
[394772888,1763933460787,-1000.0,0.00040999,3]
[394772889,1763933460796,-163.82453999,0.00041,31]
[394772890,1763933460806,-6997.08996054,0.00041,21]
[394772891,1763933460816,-400160.2855546,0.00041,2]
[394772892,1763933461022,-1694.64,0.00041,2]
[394772893,1763933461035,-8333.405,0.00041,2]
[394772894,1763933461046,-569.67253364,0.00041,2]
[394772895,1763933461058,-2511.40197239,0.00041,2]
[394772896,1763933461115,-64583.76686125,0.00041,2]
[394772897,1763933461127,-8756.83046009,0.00041,2]
[394772898,1763933461139,-7441.55697685,0.00041,2]
[394772899,1763933461156,-1704.0,0.00037731,2]
[394772900,1763933461317,-955.0,0.00037731,2]
[394772901,1763933461326,-500.0,0.00038893,8]
[394772902,1763933461336,-500.0,0.00039167,8]
[394772903,1763933461345,-177.6,0.0003937,2]
[394772904,1763933461355,-551.04,0.0003937,2]
[394772905,1763933461364,-150.0,0.0003937,2]
[394772906,1763933461374,-169.71,0.0003937,2]
[394772907,1763933461384,-417.4,0.0003937,2]
[394772908,1763933461394,-150.0,0.0003937,2]
[394772909,1763933461404,-500.0,0.00039441,8]
[394772910,1763933461413,-300.76062061,0.00039715,8]
[394772911,1763933461444,-199.23937939,0.00039715,8]
[394772912,1763933461454,-49.22437403,0.00039989,8]
[394772913,1763933461659,-167.62271885,0.00039989,8]
[394772914,1763933461704,-473.47729915,0.00040731,2]
[394772915,1763933461740,-1670.6615604,0.00040731,2]
[394772916,1763933461785,-514.86114045,0.00040731,2]
[394772917,1763933461795,-74.98417744,0.00041,2]
[394772918,1763933461806,-4478.59903356,0.00041,2]
[394772919,1763933461818,-278.64265093,0.00041,2]
[394772920,1763933461829,-17846.38620639,0.00041,2]
[394772921,1763933461849,-900.862616,0.00041,2]
[394772922,1763933461860,-2742.59999999,0.00041,2]
[394772923,1763933547791,562.07855397,0.00017,30]
[394772948,1763934632234,-250.0,0.00017,2]
[394772949,1763934632244,-195.0,0.000187,2]
[394772950,1763934632256,-195.0,0.00020891,2]
[394772951,1763934632266,-250.0,0.00022463,2]
[394772952,1763934632276,-2255.0,0.00024781,2]
[394772953,1763934632289,-152.50000003,0.000249,48]
[394772954,1763934632299,-4211.12,0.00024905,2]
[394772955,1763934632308,-195.0,0.00025483,2]
[394772956,1763934632318,-1200.0,0.00025904,2]
[394772957,1763934632329,-195.0,0.00025905,2]
[394772958,1763934632340,-426.78462315,0.0002595,2]
[394772959,1763934632349,-300.0,0.00026212,2]
[394772960,1763934632359,-1200.0,0.00026372,2]
[394772961,1763934632368,-500.0,0.00026373,2]
[394772962,1763934632378,-500.0,0.00026373,2]
[394772963,1763934632389,-171.97287792,0.00026373,2]
[394772964,1763934632403,-328.02712208,0.00026373,2]
[394772965,1763934632413,-500.0,0.00026373,2]
[394772966,1763934632423,-500.0,0.00026373,2]
[394772967,1763934632432,-414.60784787,0.00026373,2]
[394772968,1763934632442,-500.0,0.00026373,2]
[394772969,1763934632453,-500.0,0.00026373,2]
[394772970,1763934632465,-397.31767821,0.00026373,2]
[394772971,1763934632475,-500.0,0.00026373,2]
[394772972,1763934632486,-500.0,0.00026373,2]
[394772973,1763934632495,-500.0,0.00026373,2]
[394772974,1763934632504,-150.99,0.00026397,2]
[394772975,1763934632515,-42.60380298,0.00026397,20]
[394772976,1763934632527,-737.85,0.00026397,20]
[394772977,1763934632538,-289.14843026,0.00026397,20]
[394772980,1763934632557,-3041.31296243,0.00026397,20]
[394772982,1763934632569,-5000.0,0.00026397,20]
[394772983,1763934632582,-358.80480433,0.00026397,20]
[394772984,1763934632593,-1297.87007568,0.00026397,10]
[394772985,1763934632605,-1171.87051943,0.00026397,10]
[394772986,1763934632616,-387.11639996,0.00026397,10]
[394772987,1763934632633,-57572.18809032,0.00026397,10]
[394772991,1763934638178,-1287.021,0.00026397,10]
[394772992,1763934638189,-296.61204001,0.00026397,10]
[394772993,1763934638413,-2758.51724,0.00026397,10]
[394772994,1763934638424,-2820.9609437,0.00026397,10]
[394772995,1763934638435,-5924.34735,0.00026397,10]
[394772996,1763934638447,-26235.60000001,0.00026397,10]
[394772997,1763934638458,-2149.884,0.00026397,10]
[394772998,1763934638469,-2140.429727,0.00026397,10]
[394772999,1763934638480,-1420.77240279,0.00026397,10]
[394773076,1763934640326,-3766.8102111,0.00026397,10]
[394773077,1763934640336,-2958.03,0.00026397,2]
[394773078,1763934640346,-500.0,0.00026399,2]
[394773079,1763934640358,-500.0,0.00026399,2]
[394773080,1763934640368,-500.0,0.00026399,2]
[394773081,1763934640377,-500.0,0.000264,2]
[394773082,1763934640388,-500.0,0.000264,2]
[394773083,1763934640398,-1000.0,0.00026921,2]
[394773084,1763934640408,-1000.0,0.00026921,2]
[394773085,1763934640417,-1000.0,0.00026921,2]
[394773086,1763934640427,-1000.0,0.00026921,2]
[394773087,1763934640436,-189.04735278,0.00026921,2]
[394773088,1763934640445,-500.0,0.00026921,2]
[394773089,1763934640455,-1000.0,0.00026921,2]
[394773090,1763934640464,-500.0,0.00026921,2]
[394773091,1763934640473,-1000.0,0.00026921,2]
[394773092,1763934640482,-230.27415955,0.00026921,2]
[394773093,1763934640491,-436.39296634,0.00026948,2]
[394773094,1763934640502,-1000.0,0.00026948,2]
[394773095,1763934640512,-503.53229708,0.00027231,4]
[394773096,1763934640521,-195.0,0.00027395,2]
[394773097,1763934640531,-300.0,0.00027395,2]
[394773098,1763934640540,-1500.0,0.00027468,5]
[394773099,1763934640550,-980.0902075,0.00027468,5]
[394773100,1763934640559,-1500.0,0.00027468,2]
[394773101,1763934640570,-1500.0,0.00027468,5]
[394773102,1763934640579,-902.2937676,0.00027468,5]
[394773103,1763934640589,-155.86,0.00027497,30]
[394773104,1763934640598,-446.22,0.00027531,2]
[394773105,1763934640608,-500.0,0.00027696,2]
[394773106,1763934640617,-2000.0,0.00028016,5]
[394773107,1763934640629,-500.0,0.00028016,5]
[394773108,1763934640639,-223.0,0.00028361,2]
[394773109,1763934640648,-152.49999999,0.00028451,57]
[394773110,1763934640657,-720.0,0.00028529,2]
[394773111,1763934640667,-243.41019831,0.00028564,5]
[394773112,1763934640677,-150.0,0.00028643,2]
[394773113,1763934640687,-166.66,0.00029446,2]
[394773114,1763934640702,-1935.5811308,0.00030085,2]
[394773115,1763934640711,-6333.71,0.00030118,2]
[394773116,1763934640721,-200.0,0.00030158,2]
[394773117,1763934640731,-194.87683144,0.00030423,2]
[394773118,1763934640741,-398.29519144,0.00030485,2]
[394773119,1763934640751,-999.0,0.0003053,3]
[394773120,1763934640761,-166.66,0.00031066,2]
[394773121,1763934640770,-152.49999999,0.00032002,65]
[394773122,1763934640779,-166.66,0.00032686,2]
[394773123,1763934640789,-166.66,0.00034306,2]
[394773124,1763934640798,-2457.839,0.00034337,38]
[394773125,1763934640807,-156.17,0.00034337,38]
[394773126,1763934640818,-1852.42,0.00034394,2]
[394773127,1763934640827,-1000.0,0.0003502,2]
[394773128,1763934640837,-478.00938628,0.00035167,2]
[394773129,1763934640847,-152.49999999,0.00035553,74]
[394773130,1763934640857,-500.0,0.00035653,2]
[394773131,1763934640866,-500.0,0.00035753,8]
[394773132,1763934640875,-1038.56,0.00036,2]
[394773133,1763934640884,-425.21711924,0.00036262,30]
[394773134,1763934640894,-4211.12,0.00036686,2]
[394773135,1763934640904,-1000.0,0.00037366,3]
[394773136,1763934640913,-381.7885367,0.00037586,2]
[394773137,1763934640923,-500.0,0.00037808,120]
[394773138,1763934640932,-1320.0,0.00037996,2]
[394773139,1763934640942,-822.0,0.00037996,2]
[394773140,1763934640951,-1601.0,0.00037996,2]
[394773141,1763934640960,-908.0,0.00037996,2]
[394773142,1763934640970,-1192.0,0.00037996,2]
[394773143,1763934640979,-1256.0,0.00037996,2]
[394773144,1763934640988,-659.0,0.00037996,2]
[394773145,1763934640997,-561.0,0.00037996,2]
[394773146,1763934641006,-252.0,0.00037996,2]
[394773147,1763934641016,-2659.0,0.00037996,2]
[394773148,1763934641025,-6497.0,0.00037996,2]
[394773149,1763934641035,-536.65204163,0.00038052,2]
[394773150,1763934641044,-5000.0,0.00038056,30]
[394773151,1763934641053,-168.51329713,0.00038056,11]
[394773152,1763934641063,-204.16484247,0.00038056,2]
[394773153,1763934641074,-500.0,0.00038082,120]
[394773154,1763934641083,-517.23784014,0.00038144,8]
[394773155,1763934641092,-500.0,0.00038144,8]
[394773156,1763934641101,-500.0,0.00038144,8]
[394773157,1763934641110,-500.0,0.00038144,8]
[394773158,1763934641121,-500.0,0.00038144,8]
[394773159,1763934641130,-500.0,0.00038144,7]
[394773160,1763934641140,-549.40673751,0.00038144,8]
[394773161,1763934641149,-500.0,0.00038144,8]
[394773162,1763934641158,-225.76708795,0.00038145,15]
[394773163,1763934641168,-500.0,0.00038145,15]
[394773164,1763934641177,-500.0,0.00038145,2]
[394773165,1763934641188,-500.0,0.00038145,15]
[394773166,1763934641197,-500.0,0.00038145,7]
[394773167,1763934641206,-500.0,0.00038145,15]
[394773168,1763934641216,-500.0,0.00038145,2]
[394773169,1763934641225,-366.03333391,0.00038145,7]
[394773170,1763934641234,-501.66929625,0.00038145,15]
[394773171,1763934641244,-301.96106709,0.00038145,15]
[394773172,1763934641256,-500.0,0.00038145,15]
[394773173,1763934641266,-500.0,0.00038145,2]
[394773174,1763934641276,-500.0,0.00038145,15]
[394773175,1763934641285,-500.0,0.00038145,2]
[394773176,1763934641294,-500.0,0.00038145,15]
[394773177,1763934641304,-270.35617701,0.00038145,2]
[394773178,1763934641313,-500.0,0.00038145,15]
[394773179,1763934641322,-206.79501577,0.00038145,15]
[394773180,1763934641334,-500.0,0.00038145,15]
[394773181,1763934641342,-500.0,0.00038145,2]
[394773182,1763934641352,-500.0,0.00038145,15]
[394773183,1763934641361,-500.0,0.00038145,2]
[394773184,1763934641371,-500.0,0.00038145,15]
[394773185,1763934641380,-500.0,0.00038145,2]
[394773186,1763934641388,-500.0,0.00038145,15]
[394773187,1763934641397,-500.0,0.00038145,15]
[394773188,1763934641406,-310.55577513,0.00038145,2]
[394773189,1763934641415,-500.0,0.00038145,15]
[394773190,1763934641424,-500.0,0.00038145,15]
[394773191,1763934641433,-500.0,0.00038145,15]
[394773192,1763934641442,-500.0,0.00038145,15]
[394773193,1763934641451,-500.0,0.00038145,15]
[394773194,1763934641460,-500.0,0.00038145,15]
[394773195,1763934641469,-500.0,0.00038145,15]
[394773196,1763934641478,-500.0,0.00038145,15]
[394773197,1763934641487,-500.0,0.00038145,15]
[394773198,1763934641496,-500.0,0.00038145,15]
[394773199,1763934641505,-500.0,0.00038145,15]
[394773200,1763934641515,-500.0,0.00038145,15]
[394773201,1763934641524,-500.0,0.00038145,15]
[394773202,1763934641533,-500.0,0.00038145,15]
[394773203,1763934641543,-500.0,0.00038145,15]
[394773204,1763934641553,-500.0,0.00038145,15]
[394773205,1763934641562,-500.0,0.00038145,15]
[394773206,1763934641572,-500.0,0.00038145,15]
[394773207,1763934641581,-500.0,0.00038145,15]
[394773208,1763934641590,-500.0,0.00038145,15]
[394773209,1763934641599,-500.0,0.00038145,15]
[394773210,1763934641608,-618.83084562,0.00038145,15]
[394773211,1763934641617,-500.0,0.00038145,15]
[394773212,1763934641627,-500.0,0.00038145,15]
[394773213,1763934641635,-500.0,0.00038145,15]
[394773214,1763934641645,-500.0,0.00038145,15]
[394773215,1763934641655,-500.0,0.00038145,15]
[394773216,1763934641664,-500.0,0.00038145,15]
[394773217,1763934641673,-500.0,0.00038145,15]
[394773218,1763934641683,-500.0,0.00038145,15]
[394773219,1763934641692,-500.0,0.00038145,15]
[394773220,1763934641701,-500.0,0.00038145,15]
[394773221,1763934641710,-500.0,0.00038145,15]
[394773222,1763934641719,-500.0,0.00038145,15]
[394773223,1763934641727,-500.0,0.00038145,15]
[394773224,1763934641736,-500.0,0.00038145,15]
[394773225,1763934641745,-350.0,0.00038145,15]
[394773226,1763934641754,-500.0,0.00038145,15]
[394773227,1763934641763,-500.0,0.00038145,15]
[394773228,1763934641773,-500.0,0.00038145,15]
[394773229,1763934641782,-500.0,0.00038145,15]
[394773230,1763934641791,-500.0,0.00038145,15]
[394773231,1763934641800,-500.0,0.00038145,15]
[394773232,1763934641809,-500.0,0.00038145,15]
[394773233,1763934641818,-500.0,0.00038145,15]
[394773234,1763934641827,-500.0,0.00038145,15]
[394773235,1763934641836,-500.0,0.00038145,15]
[394773236,1763934641845,-500.0,0.00038145,8]
[394773237,1763934641855,-500.83480133,0.00038145,8]
[394773238,1763934641864,-500.0,0.00038145,8]
[394773239,1763934641874,-500.0,0.00038145,2]
[394773240,1763934641883,-1632.89,0.00038145,14]
[394773241,1763934641893,-218692.001513,0.00038146,4]
[394773242,1763934641902,-155.86,0.00038151,30]
[394773243,1763934641912,-500.0,0.00038155,8]
[394773244,1763934641921,-500.0,0.00038155,8]
[394773245,1763934641931,-522.80951758,0.00038155,8]
[394773246,1763934641941,-500.0,0.00038155,8]
[394773247,1763934641951,-500.0,0.00038155,8]
[394773248,1763934641960,-512.60984382,0.00038155,8]
[394773249,1763934641969,-500.0,0.00038155,8]
[394773250,1763934641979,-500.0,0.00038155,8]
[394773251,1763934641989,-500.0,0.00038155,8]
[394773252,1763934641998,-500.0,0.00038155,8]
[394773253,1763934642008,-500.0,0.00038155,8]
[394773254,1763934642018,-500.0,0.00038155,8]
[394773255,1763934642029,-500.0,0.00038155,8]
[394773256,1763934642039,-259.65900185,0.00038155,8]
[394773257,1763934642051,-500.0,0.00038155,7]
[394773258,1763934642061,-597.56,0.00038155,7]
[394773259,1763934642071,-500.0,0.00038155,2]
[394773260,1763934642080,-500.0,0.00038155,2]
[394773261,1763934642090,-500.0,0.00038155,2]
[394773262,1763934642099,-500.0,0.00038155,2]
[394773263,1763934642109,-442.86671244,0.00038155,8]
[394773264,1763934642118,-163.02218527,0.00038172,15]
[394773265,1763934642128,-2655.96147258,0.00038172,2]
[394773266,1763934642137,-305.82149311,0.00038173,5]
[394773267,1763934642147,-503.73300027,0.00038173,5]
[394773268,1763934642156,-500.0,0.00038173,5]
[394773269,1763934642166,-166.21595802,0.00038173,5]
[394773270,1763934642176,-500.0,0.00038173,5]
[394773271,1763934642187,-500.0,0.00038173,5]
[394773272,1763934642196,-520.88092567,0.00038173,5]
[394773273,1763934642206,-146873.4273772,0.00038282,2]
[394773274,1763934642219,-704.53,0.0003834,2]
[394773275,1763934642228,-500.0,0.00038355,8]
[394773276,1763934642237,-609.30044477,0.00038355,8]
[394773277,1763934642247,-281.30388575,0.00038355,15]
[394773278,1763934642261,-500.0,0.00038355,15]
[394773279,1763934642271,-284.94613703,0.00038355,15]
[394773280,1763934642280,-187.15072373,0.00038355,15]
[394773281,1763934642290,-526.08801108,0.00038355,15]
[394773282,1763934642303,-500.0,0.00038355,15]
[394773283,1763934642313,-500.0,0.00038356,8]
[394773284,1763934642324,-500.0,0.00038356,8]
[394773285,1763934642334,-500.0,0.00038356,8]
[394773286,1763934642343,-500.0,0.00038356,8]
[394773287,1763934642353,-500.0,0.00038356,8]
[394773288,1763934642363,-500.0,0.00038356,8]
[394773289,1763934642372,-500.0,0.00038356,8]
[394773290,1763934642383,-500.0,0.00038356,8]
[394773291,1763934642392,-500.0,0.00038356,8]
[394773292,1763934642402,-500.0,0.00038356,2]
[394773293,1763934642411,-500.0,0.00038356,2]
[394773294,1763934642421,-500.0,0.00038356,8]
[394773295,1763934642430,-500.0,0.00038356,8]
[394773296,1763934642439,-500.0,0.00038356,10]
[394773297,1763934642448,-333.96759875,0.00038356,8]
[394773298,1763934642458,-500.0,0.00038356,8]
[394773299,1763934642468,-500.0,0.00038356,8]
[394773300,1763934642477,-500.0,0.00038356,8]
[394773301,1763934642487,-300.0,0.00038356,2]
[394773302,1763934642496,-500.0,0.00038356,8]
[394773303,1763934642506,-500.0,0.00038356,8]
[394773304,1763934642515,-500.0,0.00038356,8]
[394773305,1763934642524,-500.0,0.00038356,8]
[394773306,1763934642534,-471.82127935,0.00038356,8]
[394773307,1763934642549,-140.20391576,0.00038356,8]
[394773308,1763934642559,-500.0,0.00038356,8]
[394773309,1763934642568,-500.0,0.00038356,8]
[394773310,1763934642578,-500.0,0.00038356,8]
[394773311,1763934642588,-500.0,0.00038356,8]
[394773312,1763934642597,-500.0,0.00038356,8]
[394773313,1763934642606,-500.0,0.00038356,8]
[394773314,1763934642616,-500.0,0.00038356,8]
[394773315,1763934642626,-246.94634866,0.00038356,8]
[394773316,1763934642635,-500.0,0.00038356,8]
[394773317,1763934642645,-500.0,0.00038356,8]
[394773318,1763934642656,-500.0,0.00038356,8]
[394773319,1763934642667,-555.81456452,0.00038356,8]
[394773320,1763934642678,-249.3147378,0.00038356,8]
[394773321,1763934642687,-155.20604396,0.00038356,8]
[394773322,1763934642696,-500.0,0.00038356,8]
[394773323,1763934642706,-500.0,0.00038356,8]
[394773324,1763934642716,-500.0,0.00038356,8]
[394773325,1763934642726,-500.0,0.00038356,8]
[394773326,1763934642735,-500.0,0.00038356,8]
[394773327,1763934642745,-500.0,0.00038356,2]
[394773328,1763934642755,-500.0,0.00038356,8]
[394773329,1763934642766,-416.17310518,0.00038356,8]
[394773330,1763934642775,-500.0,0.00038356,8]
[394773331,1763934642785,-500.0,0.00038356,8]
[394773332,1763934643000,-500.0,0.00038356,120]
[394773333,1763934643009,-500.0,0.00038356,8]
[394773334,1763934643019,-500.0,0.00038356,8]
[394773335,1763934643028,-500.0,0.00038356,8]
[394773336,1763934643037,-500.0,0.00038356,8]
[394773337,1763934643047,-500.0,0.00038356,8]
[394773338,1763934643056,-500.0,0.00038356,8]
[394773339,1763934643065,-500.0,0.00038356,8]
[394773340,1763934643075,-500.0,0.00038356,8]
[394773341,1763934643084,-500.0,0.00038356,8]
[394773342,1763934643093,-500.0,0.00038356,8]
[394773343,1763934643103,-500.0,0.00038356,8]
[394773344,1763934643112,-500.0,0.00038356,8]
[394773345,1763934643121,-500.0,0.00038356,8]
[394773346,1763934643131,-500.0,0.00038356,8]
[394773347,1763934643140,-500.0,0.00038356,8]
[394773348,1763934643150,-500.0,0.00038356,8]
[394773349,1763934643159,-500.0,0.00038356,8]
[394773350,1763934643168,-500.0,0.00038356,8]
[394773351,1763934643177,-1000.0,0.00038356,8]
[394773352,1763934643186,-500.0,0.00038356,8]
[394773353,1763934643197,-500.0,0.00038356,8]
[394773354,1763934643207,-500.0,0.00038356,8]